bitfinex/quotes_BTCUSD_20250102
["timestamp","ask_amount","ask_price","bid_price","bid_amount"]
[1735844374970,0.52924387,97387.0,97386.0,1.5181708]
[1735844375219,0.62924387,97387.0,97386.0,1.5181708]
[1735844376607,0.83464387,97387.0,97386.0,1.5181708]
[1735844376788,0.83464387,97387.0,97359.0,0.0828708]
[1735844376789,0.1,97370.0,97359.0,0.0001708]
[1735844376953,0.205423,97360.0,97359.0,0.00031719]
[1735844377150,0.21084353,97360.0,97359.0,0.00031719]
[1735844377984,0.41482985,97360.0,97359.0,0.00031719]
[1735844378816,0.21084353,97360.0,97359.0,0.00031719]
[1735844379223,0.21184353,97360.0,97359.0,0.00931719]
[1735844379454,0.21084353,97360.0,97359.0,0.00031719]
[1735844379648,0.41482985,97360.0,97359.0,0.00031719]
[1735844379849,0.41582985,97360.0,97359.0,0.00831719]
[1735844380162,0.41682985,97360.0,97359.0,0.01631719]
[1735844380725,0.39506051,97360.0,97359.0,0.01631719]
[1735844381955,0.39506051,97360.0,97359.0,1.51631719]
[1735844383578,0.41083454,97360.0,97359.0,1.51631719]
[1735844383771,0.31083454,97360.0,97359.0,1.51631719]
[1735844384203,0.41083454,97360.0,97359.0,1.51631719]
[1735844384795,0.20684822,97360.0,97359.0,1.51631719]
[1735844385423,0.20684822,97360.0,97359.0,1.59881719]
[1735844385592,0.00742053,97360.0,97359.0,1.59881719]
[1735844385788,0.002,97360.0,97359.0,1.59881719]
[1735844386032,0.0073848,97360.0,97359.0,1.59881719]
[1735844386205,0.002,97360.0,97359.0,1.69881719]
[1735844386390,0.001,97360.0,97359.0,1.69081719]
[1735844386600,0.01621032,97362.0,97359.0,1.58281719]
[1735844386809,0.002,97360.0,97359.0,0.09981719]
[1735844387121,0.001,97360.0,97359.0,0.09081719]
[1735844387337,0.205405,97369.0,97361.0,0.205421]
[1735844387535,0.22110502,97373.0,97361.0,0.205421]
[1735844387999,0.42650202,97373.0,97361.0,0.205421]
[1735844388204,0.00540094,97372.0,97361.0,0.20398466]
[1735844388500,0.205399,97371.0,97360.0,0.1]
[1735844388704,0.205399,97371.0,97370.0,1.5]
[1735844389437,0.2108007,97371.0,97370.0,1.5]
[1735844390476,0.2118007,97371.0,97370.0,0.017]
[1735844391087,0.2118007,97371.0,97370.0,1.517]
[1735844391649,0.2118007,97371.0,97370.0,0.017]
[1735844396912,0.2118007,97371.0,97370.0,1.517]
[1735844399852,0.2118007,97371.0,97370.0,0.017]
[1735844400323,0.2115607,97371.0,97370.0,0.017]
[1735844400743,0.2116462,97371.0,97370.0,0.017]
[1735844401800,0.2116462,97371.0,97370.0,0.016]
[1735844405100,0.0064872,97371.0,97370.0,0.016]
[1735844405435,0.0064872,97371.0,97370.0,1.516]
[1735844407323,0.0064872,97371.0,97370.0,0.016]
[1735844408039,0.21047352,97371.0,97370.0,0.016]
[1735844408417,0.36047352,97371.0,97370.0,0.016]
[1735844409015,0.38347352,97371.0,97370.0,0.016]
[1735844409210,0.62889099,97371.0,97370.0,0.016]
[1735844409415,0.55382157,97371.0,97370.0,0.016]
[1735844410229,0.73342607,97371.0,97370.0,0.016]
[1735844411082,0.83342607,97371.0,97370.0,0.016]
[1735844411868,0.455423,97360.0,97359.0,0.00031719]
[1735844412043,0.58240932,97360.0,97359.0,0.00031719]
[1735844412932,0.46040932,97360.0,97359.0,0.00731719]
[1735844413172,0.56040932,97360.0,97359.0,0.00731719]
[1735844413389,0.58340932,97360.0,97359.0,0.00731719]
[1735844413601,1.09796932,97360.0,97359.0,0.01431719]
[1735844414415,1.09696932,97360.0,97359.0,0.00731719]
[1735844414616,1.11179539,97360.0,97359.0,0.00731719]
[1735844415065,1.11279539,97360.0,97359.0,0.01331719]
[1735844415523,1.11179539,97360.0,97359.0,0.00731719]
[1735844415965,1.11279539,97360.0,97359.0,0.01331719]
[1735844417019,1.21279539,97360.0,97359.0,0.01331719]
[1735844417148,1.32744017,97360.0,97359.0,0.01331719]
[1735844417352,1.65130173,97360.0,97359.0,0.01331719]
[1735844417579,1.61925695,97360.0,97359.0,0.01331719]
[1735844418157,1.53665695,97360.0,97359.0,0.01331719]
[1735844420073,1.331306,97360.0,97359.0,0.01331719]
[1735844421187,1.43529232,97360.0,97359.0,1.9e-07]
[1735844421357,0.555444,97350.0,97349.0,8e-07]
[1735844421538,1.310416,97350.0,97349.0,2.8e-07]
[1735844421755,0.205507,97320.0,97316.0,0.000171]
[1735844421940,0.205507,97320.0,97319.0,0.00031753]
[1735844421941,0.30949332,97320.0,97319.0,0.00031753]
[1735844422137,0.31556568,97320.0,97319.0,0.00031753]
[1735844422355,0.21157936,97320.0,97319.0,0.00031753]
[1735844423409,0.22683943,97320.0,97319.0,0.00731753]
[1735844423612,0.22583943,97320.0,97319.0,0.00031753]
[1735844423977,0.22583943,97320.0,97319.0,0.00731753]
[1735844423978,0.22683943,97320.0,97319.0,0.00731753]
[1735844424578,0.33082575,97320.0,97319.0,0.00731753]
[1735844424897,1.07137207,97320.0,97319.0,0.00731753]
[1735844425081,1.04258575,97320.0,97319.0,0.00731753]
[1735844425280,1.04358575,97320.0,97319.0,0.00731753]
[1735844425520,0.84538575,97320.0,97319.0,0.00731753]
[1735844427769,0.74139943,97320.0,97319.0,0.00731753]
[1735844430223,0.52163236,97320.0,97319.0,0.13711753]
[1735844430853,0.52163236,97320.0,97319.0,1.63711753]
[1735844431431,0.52163236,97320.0,97319.0,0.13711753]
[1735844431832,0.52163236,97320.0,97319.0,0.08941753]
[1735844435731,0.52163236,97320.0,97319.0,0.00731753]
[1735844436868,0.62561868,97320.0,97319.0,0.00731753]
[1735844437888,0.74861868,97320.0,97319.0,0.00731753]
[1735844439150,0.64761868,97320.0,97319.0,0.00731753]
[1735844439358,0.64661868,97320.0,97319.0,0.00031753]
[1735844440090,0.74661868,97320.0,97319.0,0.00031753]
[1735844440439,0.74661868,97320.0,97319.0,0.00231753]
[1735844440842,0.74661868,97320.0,97319.0,0.00031753]
[1735844441252,0.74661868,97320.0,97319.0,0.00231753]
[1735844442659,0.74646455,97320.0,97319.0,0.00231753]
[1735844446227,0.62346455,97320.0,97319.0,0.00231753]
[1735844446627,0.51947823,97320.0,97319.0,0.00231753]
[1735844454037,0.62346455,97320.0,97319.0,0.00231753]
[1735844455237,0.65554987,97320.0,97319.0,0.00231753]
[1735844457531,0.77854987,97320.0,97319.0,0.00231753]
[1735844457641,0.65554987,97320.0,97319.0,0.00231753]
[1735844461010,1.11014987,97320.0,97319.0,0.00231753]
[1735844461229,0.82863537,97320.0,97319.0,0.00231753]
[1735844461364,0.80563537,97320.0,97319.0,0.00231753]
[1735844461963,0.51956373,97320.0,97319.0,0.00231753]
[1735844462862,0.5136455,97320.0,97319.0,0.00231753]
[1735844463066,0.5136455,97320.0,97319.0,0.13031753]
[1735844463214,0.5136455,97320.0,97319.0,0.12831753]
[1735844463423,0.5136455,97320.0,97319.0,0.23230385]
[1735844463626,0.3855455,97320.0,97319.0,0.38430385]
[1735844463834,0.2574455,97320.0,97319.0,0.38430385]
[1735844464037,0.2574455,97320.0,97319.0,1.88430385]
[1735844464216,8.55e-05,97320.0,97319.0,1.88430385]
[1735844464421,0.09222973,97338.0,97335.0,0.0779]
[1735844464794,0.09222973,97338.0,97336.0,0.14578632]
[1735844465194,0.09222973,97363.0,97337.0,1.5]
[1735844465395,0.29764673,97363.0,97338.0,0.30945532]
[1735844465596,0.29764673,97363.0,97347.0,0.205449]
[1735844465977,0.31183954,97363.0,97347.0,0.205449]
[1735844466362,0.10642254,97363.0,97348.0,0.10398632]
[1735844466572,0.0090855,97349.0,97348.0,0.10398632]
[1735844467361,0.0090855,97349.0,97347.0,0.206449]
[1735844467567,0.0090855,97349.0,97347.0,0.001]
[1735844467939,0.205448,97348.0,97347.0,0.001]
[1735844468188,0.205448,97348.0,97326.0,0.1]
[1735844468444,0.205448,97348.0,97327.0,0.0776]
[1735844468644,0.410896,97348.0,97327.0,0.0776]
[1735844468847,0.205469,97339.0,97327.0,0.0776]
[1735844469053,8.55e-05,97349.0,97327.0,0.0776]
[1735844469054,0.205463,97341.0,97327.0,0.0776]
[1735844469249,0.410926,97341.0,97327.0,0.0776]
[1735844469462,0.205463,97341.0,97327.0,0.0776]
[1735844469870,0.205457,97344.0,97328.0,0.20549]
[1735844470094,0.01377393,97349.0,97329.0,0.30947432]
[1735844470095,0.205455,97345.0,97329.0,0.30947432]
[1735844470299,0.205463,97341.0,97327.0,0.0776]
[1735844470503,0.205473,97337.0,97327.0,0.0776]
[1735844470728,0.205502,97323.0,97319.0,0.00031753]
[1735844472499,0.206502,97323.0,97319.0,0.00031753]
[1735844473145,0.205485,97331.0,97319.0,0.00031753]
[1735844473388,0.205475,97336.0,97320.0,0.205507]
[1735844473568,0.002,97323.0,97320.0,0.205507]
[1735844473781,0.0010855,97323.0,97322.0,0.205503]
[1735844474200,0.0020855,97323.0,97319.0,0.00031753]
[1735844474799,0.0010855,97323.0,97319.0,0.00031753]
[1735844475435,8.55e-05,97323.0,97316.0,1.49965953]
[1735844475743,8.55e-05,97323.0,97316.0,1.49980615]
[1735844475744,0.2055875,97323.0,97316.0,1.49980615]
[1735844475944,0.0020855,97323.0,97316.0,1.49980615]
[1735844476191,0.0010855,97323.0,97316.0,1.49980615]
[1735844476400,8.55e-05,97323.0,97316.0,1.49980615]
[1735844476571,0.0010855,97323.0,97316.0,1.49980615]
[1735844476799,0.205503,97322.0,97316.0,1.49980615]
[1735844477370,0.205512,97318.0,97316.0,1.49980615]
[1735844477572,0.205511,97319.0,97316.0,1.49980615]
[1735844477768,0.411022,97319.0,97316.0,1.49980615]
[1735844477968,0.411022,97319.0,97316.0,0.00014662]
[1735844478986,0.412022,97319.0,97316.0,0.00014662]
[1735844479607,1.79396638,97299.0,97297.0,0.205555]
[1735844480025,1.79396638,97299.0,97298.0,0.205554]
[1735844480253,2.0,97299.0,97298.0,0.205554]
[1735844480462,2.0,97299.0,97297.0,0.00049062]
[1735844481876,2.001,97299.0,97297.0,0.00049062]
[1735844482653,2.01,97299.0,97297.0,0.00049062]
[1735844482866,2.001,97299.0,97297.0,0.00049062]
[1735844483295,2.002,97299.0,97297.0,0.00049062]
[1735844485415,2.002,97299.0,97297.0,0.00066162]
[1735844486854,2.002,97299.0,97297.0,0.20621562]
[1735844487084,2.002,97299.0,97297.0,0.00066162]
[1735844487404,2.002,97299.0,97298.0,1.5]
[1735844488245,2.001,97299.0,97298.0,1.5]
[1735844488682,2.002,97299.0,97298.0,1.5]
[1735844489418,2.001,97299.0,97298.0,1.5]
[1735844489653,2.002,97299.0,97298.0,1.5]
[1735844490888,0.205554,97298.0,97297.0,0.00066162]
[1735844492079,0.206554,97298.0,97297.0,0.00066162]
[1735844492726,0.207554,97298.0,97297.0,0.00066162]
[1735844496849,0.206554,97298.0,97297.0,0.00066162]
[1735844497487,0.207554,97298.0,97297.0,0.00066162]
[1735844497694,0.206554,97298.0,97297.0,0.00066162]
[1735844498025,0.205554,97298.0,97297.0,0.00066162]
[1735844498227,0.206554,97298.0,97297.0,0.00066162]
[1735844498684,0.207554,97298.0,97297.0,0.00066162]
[1735844501189,0.289954,97298.0,97297.0,0.00066162]
[1735844503954,0.207554,97298.0,97297.0,0.00066162]
[1735844511614,0.002,97298.0,97297.0,0.00066162]
[1735844512975,0.002,97298.0,97297.0,1.50066162]
[1735844513176,0.002,97298.0,97297.0,1.58326162]
[1735844514072,0.001,97298.0,97297.0,1.58326162]
[1735844514505,2.0,97299.0,97297.0,0.00066162]
[1735844514706,0.009,97298.0,97297.0,0.00066162]
[1735844515039,2.0,97299.0,97297.0,0.00066162]
[1735844515452,0.0637,97298.0,97297.0,0.00066162]
[1735844515658,0.0547,97298.0,97297.0,0.00066162]
[1735844515855,0.0457,97298.0,97297.0,0.00066162]
[1735844516107,0.0467,97298.0,97297.0,0.00066162]
[1735844516678,0.0467,97298.0,97297.0,0.00866162]
[1735844517184,0.0467,97298.0,97297.0,0.00066162]
[1735844517390,0.0457,97298.0,97297.0,0.00066162]
[1735844517916,0.0467,97298.0,97297.0,0.00566162]
[1735844518642,0.0467,97298.0,97297.0,0.00466162]
[1735844518883,0.0477,97298.0,97297.0,0.00966162]
[1735844519081,0.0467,97298.0,97297.0,0.00566162]
[1735844519306,0.0467,97298.0,97297.0,0.00466162]
[1735844519783,0.22828632,97298.0,97297.0,0.00066162]
[1735844520638,0.26139603,97298.0,97297.0,0.00466162]
[1735844520814,0.26239603,97298.0,97297.0,0.00966162]
[1735844521012,0.26239603,97298.0,97297.0,0.00466162]
[1735844521245,0.26139603,97298.0,97297.0,0.00466162]
[1735844521552,0.26239603,97298.0,97297.0,0.00966162]
[1735844521894,0.22928632,97298.0,97297.0,0.00566162]
[1735844522096,0.22928632,97298.0,97297.0,0.001]
[1735844522298,0.22928632,97298.0,97272.0,0.0001708]
[1735844522299,0.703373,97289.0,97272.0,0.0001708]
[1735844522499,0.83946284,97289.0,97288.0,0.00014664]
[1735844522944,0.83946284,97289.0,97288.0,6.4e-07]
[1735844523396,0.205606,97273.0,97272.0,0.0001708]
[1735844523577,0.48949584,97273.0,97272.0,0.00031756]
[1735844523755,0.46649584,97273.0,97272.0,0.00031756]
[1735844523983,0.43439232,97273.0,97272.0,0.00031756]
[1735844524667,0.7357639,97273.0,97272.0,0.00031756]
[1735844525251,0.74871618,97273.0,97272.0,0.00031756]
[1735844525772,0.74871618,97273.0,97272.0,0.00431756]
[1735844525977,0.77171618,97273.0,97272.0,0.00431756]
[1735844526183,0.77171618,97273.0,97272.0,0.00031756]
[1735844526562,0.77271618,97273.0,97272.0,0.00431756]
[1735844526851,0.64572986,97273.0,97272.0,0.00431756]
[1735844527022,0.64472986,97273.0,97272.0,0.00031756]
[1735844527368,0.30137158,97273.0,97272.0,0.00431756]
[1735844527574,0.53222397,97273.0,97272.0,0.00431756]
[1735844527785,0.53222397,97273.0,97272.0,0.07981756]
[1735844527993,0.53222397,97273.0,97272.0,0.20992656]
[1735844528523,0.53222397,97273.0,97272.0,0.20592656]
[1735844528756,0.205581,97285.0,97272.0,0.20592656]
[1735844528998,0.001,97273.0,97272.0,0.20992656]
[1735844529330,0.205581,97285.0,97272.0,0.20592656]
[1735844529578,0.205591,97281.0,97272.0,0.00031756]
[1735844529897,0.001,97273.0,97272.0,0.00431756]
[1735844530305,0.001,97273.0,97272.0,0.00031756]
[1735844530480,0.205581,97285.0,97273.0,0.205606]
[1735844531008,0.205563,97294.0,97274.0,1.5]
[1735844531242,0.205573,97290.0,97279.0,0.205593]
[1735844531414,0.205573,97290.0,97274.0,1.705604]
[1735844531604,0.205567,97292.0,97279.0,0.205593]
[1735844531813,0.002,97285.0,97279.0,0.205593]
[1735844532204,0.205575,97288.0,97279.0,0.205593]
[1735844532417,0.205575,97288.0,97279.0,0.208593]
[1735844532616,0.205575,97288.0,97279.0,0.208592]
[1735844533201,0.205567,97292.0,97279.0,0.208592]
[1735844533351,0.001,97288.0,97279.0,0.212592]
[1735844533564,0.001,97288.0,97281.0,0.205589]
[1735844533933,0.001,97288.0,97287.0,0.205577]
[1735844534763,8.56e-05,97298.0,97297.0,0.205556]
[1735844535199,8.56e-05,97298.0,97297.0,1.705556]
[1735844536205,8.56e-05,97298.0,97297.0,1.5]
[1735844536566,0.0030856,97298.0,97297.0,1.5]
[1735844537180,0.0040856,97298.0,97297.0,1.509]
[1735844537380,0.0030856,97298.0,97297.0,1.5]
[1735844537797,0.0120856,97298.0,97297.0,0.001]
[1735844539734,0.0925856,97298.0,97297.0,0.001]
[1735844540359,0.19657192,97298.0,97297.0,0.001]
[1735844540561,0.18757192,97298.0,97273.0,0.409406]
[1735844540923,0.205579,97286.0,97276.0,0.205598]
[1735844541124,0.205572,97290.0,97277.0,0.205598]
[1735844541468,0.0845856,97298.0,97276.0,0.1]
[1735844541672,0.0845856,97298.0,97297.0,0.003]
[1735844541673,0.2056396,97298.0,97297.0,0.003]
[1735844541883,0.2056396,97298.0,97287.0,0.205577]
[1735844542522,8.56e-05,97298.0,97283.0,0.205584]
[1735844542728,0.0010856,97298.0,97297.0,0.005]
[1735844543250,0.0010856,97298.0,97297.0,0.10898632]
[1735844543451,0.0010856,97298.0,97297.0,0.20739058]
[1735844543608,0.0010856,97298.0,97297.0,0.25329058]
[1735844543823,0.0010856,97298.0,97297.0,1.85329058]
[1735844544182,0.0010856,97298.0,97297.0,1.99829058]
[1735844544415,2.0,97299.0,97298.0,0.555554]
[1735844544416,1.2511856,97299.0,97298.0,0.555554]
[1735844544619,1.2511856,97299.0,97298.0,0.65954032]
[1735844546087,1.2601856,97299.0,97298.0,0.66054032]
[1735844546248,1.2601856,97299.0,97298.0,0.68354032]
[1735844547189,1.2691856,97299.0,97298.0,0.68454032]
[1735844547385,1.2601856,97299.0,97298.0,0.66054032]
[1735844547563,1.2511856,97299.0,97298.0,0.65954032]
[1735844547811,1.2601856,97299.0,97298.0,0.66054032]
[1735844548024,1.2691856,97299.0,97298.0,0.66154032]
[1735844549645,1.2691856,97299.0,97298.0,0.56154032]
[1735844549852,1.2691856,97299.0,97298.0,0.66154032]
[1735844550056,1.2691856,97299.0,97298.0,0.56154032]
[1735844550864,1.2691856,97299.0,97298.0,2.06154032]
[1735844551518,1.2691856,97299.0,97298.0,1.81154032]
[1735844552322,1.2601856,97299.0,97298.0,1.81054032]
[1735844552687,1.2691856,97299.0,97298.0,1.81154032]
[1735844552911,1.2691856,97299.0,97298.0,1.96154032]
[1735844553614,1.2601856,97299.0,97298.0,1.96054032]
[1735844553936,1.2691856,97299.0,97298.0,1.96054032]
[1735844554352,1.2781856,97299.0,97298.0,1.96014032]
[1735844554550,1.2691856,97299.0,97298.0,1.95914032]
[1735844554756,1.2781856,97299.0,97298.0,2.05914032]
[1735844554960,1.2781856,97299.0,97298.0,2.15914032]
[1735844555136,1.2781856,97299.0,97298.0,2.23814032]
[1735844555343,1.2691856,97299.0,97298.0,2.23814032]
[1735844555651,1.2781856,97299.0,97298.0,2.26114032]
[1735844556727,1.2781856,97299.0,97298.0,2.23814032]
[1735844557293,1.2781856,97299.0,97298.0,2.26131132]
[1735844557496,1.2782711,97299.0,97298.0,2.31091132]
[1735844558315,1.2782711,97299.0,97298.0,2.41091132]
[1735844558606,1.2782711,97299.0,97298.0,2.21091132]
[1735844558811,1.2782711,97299.0,97298.0,2.38791132]
[1735844559020,1.2782711,97299.0,97298.0,2.05931132]
[1735844559219,1.2782711,97299.0,97298.0,1.90931132]
[1735844559339,1.2782711,97299.0,97298.0,1.80931132]
[1735844562660,1.27775722,97299.0,97298.0,1.80931132]
[1735844569828,1.27775722,97299.0,97298.0,2.05931132]
[1735844570030,0.05775722,97299.0,97298.0,2.15931132]
[1735844571139,0.05775722,97299.0,97298.0,2.18231132]
[1735844572005,0.04875722,97299.0,97298.0,2.18231132]
[1735844572452,0.05775722,97299.0,97298.0,2.18231132]
[1735844572868,0.05775722,97299.0,97298.0,2.25931132]
[1735844573747,0.03975722,97299.0,97298.0,2.25931132]
[1735844573960,0.03075722,97299.0,97298.0,2.25931132]
[1735844574403,0.03975722,97299.0,97298.0,2.25931132]
[1735844574612,0.04875722,97299.0,97298.0,2.25931132]
[1735844574827,0.04875722,97299.0,97298.0,2.15931132]
[1735844575033,0.03975722,97299.0,97298.0,2.25931132]
[1735844575239,0.04875722,97299.0,97298.0,2.28231132]
[1735844575662,8.55e-05,97323.0,97322.0,0.734803]
[1735844575865,8.55e-05,97323.0,97322.0,1.04258932]
[1735844576275,8.55e-05,97323.0,97322.0,2.54258932]
[1735844577049,0.00013444,97323.0,97322.0,2.54258932]
[1735844577245,0.00913444,97323.0,97322.0,2.46328932]
[1735844577455,0.00913444,97323.0,97322.0,2.36328932]
[1735844577657,0.00913444,97323.0,97322.0,2.46328932]
[1735844577830,0.00913444,97323.0,97322.0,2.36328932]
[1735844578281,0.00913444,97323.0,97322.0,2.37538446]
[1735844579063,0.00913444,97323.0,97322.0,2.39624854]
[1735844579259,0.00913444,97323.0,97322.0,2.49624854]
[1735844579716,0.01413444,97323.0,97322.0,2.49724854]
[1735844580441,0.01413444,97323.0,97322.0,2.52024854]
[1735844580849,0.01413444,97323.0,97322.0,2.69984854]
[1735844582231,8.55e-05,97349.0,97348.0,0.2]
[1735844582435,0.00057534,97349.0,97348.0,0.50778632]
[1735844582647,0.00057534,97349.0,97348.0,0.71323432]
[1735844582867,0.00057534,97349.0,97348.0,2.21323432]
[1735844583070,0.00057534,97349.0,97348.0,2.36323432]
[1735844583672,0.00957534,97349.0,97348.0,2.36423432]
[1735844584464,0.00957534,97349.0,97348.0,2.46423432]
[1735844584700,0.01057534,97349.0,97348.0,2.47323432]
[1735844584864,0.01057534,97349.0,97348.0,2.49623432]
[1735844585066,0.00957534,97349.0,97348.0,2.48723432]
[1735844585305,0.00957534,97349.0,97348.0,2.56423432]
[1735844585519,0.01188899,97370.0,97369.0,0.455404]
[1735844585751,0.01193796,97370.0,97369.0,0.76319032]
[1735844585940,0.00013447,97370.0,97369.0,0.76319032]
[1735844586152,0.00013447,97370.0,97369.0,2.26319032]
[1735844586326,0.00013447,97370.0,97369.0,2.36319032]
[1735844586532,0.00013447,97370.0,97369.0,2.36640315]
[1735844587027,0.00613447,97370.0,97369.0,2.36419032]
[1735844587229,0.1794711,97402.0,97386.0,0.205368]
[1735844587432,4.894e-05,97390.0,97387.0,0.10398632]
[1735844587635,0.02013618,97388.0,97382.0,0.1]
[1735844587841,0.02013618,97388.0,97368.0,0.1]
[1735844588050,0.02013618,97388.0,97370.0,0.10398632]
[1735844588286,0.02013618,97388.0,97369.0,0.2038]
[1735844588502,0.02013618,97388.0,97386.0,0.008]
[1735844588691,0.02013618,97388.0,97387.0,0.009]
[1735844589190,0.205362,97389.0,97386.0,0.008]
[1735844589385,0.01202353,97390.0,97386.0,0.008]
[1735844589386,0.001,97388.0,97386.0,0.008]
[1735844589584,0.205366,97387.0,97374.0,0.1]
[1735844589801,0.205366,97387.0,97375.0,0.10398632]
[1735844590210,0.20537,97385.0,97375.0,0.10398632]
[1735844590382,0.205366,97387.0,97386.0,0.009]
[1735844590809,0.205366,97387.0,97386.0,1.5]
[1735844591648,0.205366,97387.0,97386.0,1.509]
[1735844591952,0.206366,97387.0,97386.0,1.518]
[1735844592360,0.001,97387.0,97386.0,1.518]
[1735844592917,0.0010855,97387.0,97386.0,1.518]
[1735844593854,0.02188788,97387.0,97386.0,1.518]
[1735844593999,0.0010855,97387.0,97386.0,1.518]
[1735844595599,0.0010855,97387.0,97386.0,1.62198632]
[1735844596274,0.0010855,97387.0,97386.0,1.62519865]
[1735844596514,0.0010855,97387.0,97386.0,1.77519865]
[1735844596722,0.0010855,97387.0,97386.0,1.80452575]
[1735844596895,8.55e-05,97387.0,97386.0,1.78652575]
[1735844597335,0.0010855,97387.0,97386.0,1.78752575]
[1735844597575,0.0010855,97387.0,97386.0,1.78331342]
[1735844597776,8.55e-05,97387.0,97386.0,1.78431342]
[1735844597905,8.55e-05,97387.0,97386.0,1.75498632]
[1735844598114,8.55e-05,97387.0,97386.0,1.75398632]
[1735844598719,0.0080855,97387.0,97386.0,1.75498632]
[1735844599442,0.0080855,97387.0,97386.0,1.75598632]
[1735844599579,0.0080855,97387.0,97386.0,1.85598632]
[1735844602852,0.0080855,97387.0,97386.0,1.75598632]
[1735844605322,0.0080855,97387.0,97386.0,1.75615712]
[1735844609172,0.0080855,97387.0,97386.0,1.5021708]
[1735844611653,8.55e-05,97387.0,97386.0,1.5001708]
[1735844613340,0.0080855,97387.0,97386.0,1.5011708]
[1735844613711,0.0090855,97387.0,97386.0,1.5011708]
[1735844613922,0.0170855,97387.0,97386.0,1.5021708]
[1735844614049,0.0080855,97387.0,97386.0,1.5011708]
[1735844614675,0.0170855,97387.0,97386.0,1.5021708]
[1735844618812,0.0978855,97387.0,97386.0,1.5021708]
[1735844619792,0.0978855,97387.0,97386.0,0.0011708]
[1735844623999,0.0170855,97387.0,97386.0,0.0011708]
[1735844625984,0.0170855,97387.0,97386.0,0.10515712]
[1735844626782,0.01607038,97387.0,97386.0,0.10515712]
[1735844626977,0.01607038,97387.0,97386.0,0.20515712]
[1735844628440,0.01607038,97387.0,97386.0,0.20532792]
[1735844629461,0.01607038,97387.0,97386.0,1.70532792]
[1735844637064,0.01607038,97387.0,97386.0,1.60532792]
[1735844638419,0.12795514,97387.0,97386.0,0.0013416]
[1735844638618,0.1662124,97387.0,97386.0,0.0013416]
[1735844638753,0.1707797,97387.0,97386.0,0.0013416]
[1735844638981,0.19181369,97387.0,97386.0,0.0013416]
[1735844639166,0.20296618,97387.0,97386.0,0.0013416]
[1735844639757,0.19396618,97387.0,97386.0,0.0003416]
[1735844640257,0.19405158,97387.0,97386.0,0.0003416]
[1735844640432,0.1869812,97387.0,97386.0,0.0001708]
[1735844640663,0.1889812,97387.0,97386.0,0.0181708]
[1735844641075,0.32533997,97387.0,97386.0,0.0001708]
[1735844641253,0.32633997,97387.0,97386.0,0.0091708]
[1735844641605,0.34933997,97387.0,97386.0,0.0091708]
[1735844642446,0.35033997,97387.0,97386.0,0.0101708]
[1735844643029,0.30630598,97387.0,97386.0,0.0101708]
[1735844643230,0.69298064,97387.0,97386.0,0.0101708]
[1735844643427,0.63222815,97387.0,97386.0,0.0101708]
[1735844643876,0.55092815,97387.0,97386.0,1.5101708]
[1735844644317,0.54992815,97387.0,97386.0,1.5091708]
[1735844644515,0.54992815,97387.0,97386.0,1.81852512]
[1735844644666,0.02389472,97387.0,97386.0,1.80952512]
[1735844644865,0.0046527,97387.0,97386.0,1.80952512]
[1735844645073,0.0010854,97387.0,97386.0,1.81852512]
[1735844645269,8.54e-05,97387.0,97386.0,1.80952512]
[1735844645680,0.0010854,97387.0,97386.0,1.81752512]
[1735844646081,8.54e-05,97387.0,97386.0,1.80952512]
[1735844646482,0.0010854,97387.0,97386.0,1.81852512]
[1735844646696,0.0010854,97387.0,97386.0,1.82752512]
[1735844647066,0.0010854,97387.0,97386.0,1.81852512]
[1735844647289,0.0010854,97387.0,97386.0,1.82752512]
[1735844648125,0.0010854,97387.0,97386.0,1.62215712]
[1735844648328,0.0010854,97387.0,97386.0,0.0181708]
[1735844648639,0.08454671,97387.0,97386.0,0.0181708]
[1735844649010,0.15424671,97387.0,97386.0,0.0181708]
[1735844649210,0.16548675,97387.0,97386.0,0.0181708]
[1735844649541,0.18470638,97387.0,97386.0,0.0181708]
[1735844649741,0.16170638,97387.0,97386.0,0.0181708]
[1735844651591,0.02506634,97387.0,97386.0,0.0181708]
[1735844652258,0.02506634,97387.0,97386.0,1.5181708]
[1735844652434,0.02506634,97387.0,97386.0,1.62215712]
[1735844652640,0.0010854,97387.0,97386.0,1.62215712]
[1735844654884,0.0010854,97387.0,97386.0,1.72215712]
[1735844657124,0.0010854,97387.0,97386.0,1.62215712]
[1735844657351,0.0010854,97387.0,97386.0,0.0181708]
[1735844657671,0.0010854,97387.0,97386.0,0.12215712]
[1735844657861,0.0010854,97387.0,97386.0,1.72215712]
[1735844666348,0.0010854,97387.0,97386.0,1.79835712]
[1735844667804,0.0010854,97387.0,97386.0,1.89835712]
[1735844669014,0.0010854,97387.0,97386.0,2.04835712]
[1735844669261,0.0010854,97387.0,97386.0,2.09335712]
[1735844670013,8.54e-05,97387.0,97386.0,2.08435712]
[1735844670223,0.0090854,97387.0,97386.0,2.07635712]
[1735844670441,0.0170854,97387.0,97386.0,2.07735712]
[1735844671448,0.0170854,97387.0,97386.0,2.07635712]
[1735844671449,0.0080854,97387.0,97386.0,2.07635712]
[1735844671733,8.54e-05,97402.0,97401.0,0.2]
[1735844671933,8.54e-05,97402.0,97401.0,1.09172232]
[1735844672311,8.54e-05,97402.0,97401.0,2.59172232]
[1735844673173,4e-07,97410.0,97409.0,0.631119]
[1735844673370,4e-07,97410.0,97409.0,0.75810532]
[1735844673572,0.01193976,97420.0,97414.0,0.655309]
[1735844673774,0.01193976,97420.0,97414.0,2.25929532]
[1735844674407,2.6e-07,97421.0,97420.0,0.1]
[1735844674613,2.6e-07,97421.0,97420.0,0.47698632]
[1735844674954,0.01193976,97450.0,97438.0,0.731058]
[1735844675158,0.01193976,97450.0,97438.0,1.03834432]
[1735844675304,0.01193976,97450.0,97438.0,1.08374432]
[1735844675509,0.01193976,97450.0,97438.0,2.58374432]
[1735844675856,0.01193976,97450.0,97438.0,2.58389108]
[1735844676232,0.01193976,97450.0,97438.0,2.58489108]
[1735844677001,0.01193976,97450.0,97438.0,2.58389108]
[1735844677420,0.0154345,97439.0,97438.0,2.58589108]
[1735844677779,0.0144345,97439.0,97438.0,2.60570407]
[1735844677994,0.0144345,97439.0,97438.0,2.61681078]
[1735844678195,0.0154345,97439.0,97438.0,2.61781078]
[1735844678608,0.0154345,97439.0,97438.0,2.39661078]
[1735844678814,0.0154345,97439.0,97438.0,2.29561078]
[1735844679020,0.0154345,97439.0,97438.0,0.76369108]
[1735844679233,0.0154345,97439.0,97438.0,0.87498134]
[1735844679658,0.0154345,97439.0,97438.0,0.87598134]
[1735844679858,0.0144345,97439.0,97438.0,0.87398134]
[1735844680267,0.0154345,97439.0,97438.0,0.87598134]
[1735844680683,0.0144345,97439.0,97438.0,0.87498134]